Cogmind - Beta 17.1 @@@ ROGUE MODE // 2026.09.05 @ 18:40:57 Player: Caluan Result: Destroyed by G-47 Trooper with Particle Gun Performance ------------- Evolutions (2) 1000 Regions Visited (4) 800 Robots Destroyed (65) 325 Value Destroyed (1989) 1989 Prototype IDs (4) 80 Alien Tech Used (0) 0 Bonus (0) 0 TOTAL SCORE: 4194 Bonus ------- None Cogmind --------- Core Integrity 0/550 Matter 183/300 Energy 148/160 System Corruption 1% Temperature Cool (9) Movement Treading (152) Location -8/Materials Parts ------- > --- POWER (1) -------- Light Nuclear Core > --- PROPULSION (3) --- Light Treads Advanced Treads > --- UTILITY (4) ------ Improved Heat Sink Advanced Heat Sink > --- WEAPON (3) ------- Spread Laser Gauss Cannon Gauss Cannon > --- INVENTORY (5) ---- Improved Heat Sink Huge Storage Unit Flak Cannon Gauss Cannon Peak State ------------ > --- POWER ------------ Light Nuclear Core > --- PROPULSION ------- Light Treads Advanced Treads > --- UTILITY ---------- Improved Heat Sink Improved Heat Sink Recoil Stabilizer > --- WEAPON ----------- Spread Laser Gauss Cannon Gauss Cannon > --- INVENTORY -------- Huge Storage Unit Flak Cannon Gauss Cannon Gauss Cannon [Rating: 27] Favorites ----------- Power Ion Engine Engine Ion Engine Power Core Light Nuclear Core Propulsion Light Treads Treads Light Treads Wheel Wheel Utility Huge Storage Unit Device Improved Heat Sink Storage Huge Storage Unit Protection Utility Shielding Weapon Light Assault Rifle Energy Gun Small Laser Energy Cannon Beam Cannon Ballistic Gun Light Assault Rifle Ballistic Cannon Gauss Cannon Launcher Heavy Missile Launcher Special Weapon Mining Laser Build | -11 -10 -10 -10 -8 ------- Run | Yrd Mat Min Sub Mat Slots Evolved 4 | . . . . 4 Power . | . . . . . Propulsion 1 | . . . . 1 Utility 2 | . . . . 2 Weapon 1 | . . . . 1 Parts Attached 41 | 4 10 2 2 23 Power 6 | . 3 1 . 2 Engine 5 | . 3 1 . 1 Core 1 | . . . . 1 Reactor . | . . . . . Propulsion 8 | 2 2 . . 4 Treads 7 | 2 1 . . 4 Leg . | . . . . . Wheel 1 | . 1 . . . Hover . | . . . . . Flight . | . . . . . Utility 11 | 1 3 . . 7 Device 7 | . 1 . . 6 Storage 2 | 1 1 . . . Processor . | . . . . . Hackware . | . . . . . Protection 2 | . 1 . . 1 Artifact . | . . . . . Weapon 16 | 1 2 1 2 10 Energy Gun 4 | . 1 . 1 2 Energy Cannon 1 | . . 1 . . Ballistic Gun 3 | 1 . . . 2 Ballistic Cannon 4 | . . . 1 3 Launcher 3 | . . . . 3 Special Weapon 1 | . 1 . . . Impact Weapon . | . . . . . Slashing Weapon . | . . . . . Piercing Weapon . | . . . . . Special Melee Weapon . | . . . . . Unidentified Prototypes . | . . . . . Parts Lost 29 | . 6 3 2 18 Power 4 | . 2 . . 2 Propulsion 6 | . 2 1 . 3 Utility 6 | . 1 1 . 4 Weapon 13 | . 1 1 2 9 Highest Loss Streak 6 | . 3 2 2 6 To Critical Strikes . | . . . . . Average Backups 5 | 1 2 8 7 6 Power . | 1 . . 1 . Propulsion . | . . . . . Utility 2 | . 2 3 4 3 Weapon 1 | . . 4 2 2 Tool/Special . | . . . . . Unused Backups 6 | . . . . 6 Power 1 | . . . . 1 Propulsion . | . . . . . Utility 2 | . . . . 2 Weapon 3 | . . . . 3 Tool/Special . | . . . . . Average Slot Usage (%) 76 | . 85 84 71 59 Engine 10 | . 13 14 14 4 Treads 16 | . 21 14 14 12 Wheel 3 | . 3 10 . . Device 8 | . 7 6 . 11 Storage 10 | . 14 14 14 4 Protection 3 | . 4 . . 4 Energy Gun 6 | . 5 6 11 7 Ballistic Gun 9 | . 14 14 2 1 Ballistic Cannon 4 | . . . 12 11 Peak Build Rating 27 | 4 9 10 10 27 Average Rating 9 | 2 7 7 9 15 On Entrance 5 | . 4 9 6 10 Avg Prop Armor Cover (%) 13 | . 13 14 . . Naked Turns . | . . . . . Heaviest Build 99 | 6 88 89 96 99 Greatest Support 62 | 40 40 20 20 62 Greatest Overweight (x) 8 | . 8 8 4 4 Average Overweight (x) 3 | . 3 7 4 . Largest Inventory Capacity 25 | 8 25 25 25 25 Average Capacity 19 | 6 21 25 25 13 Most Carried 11 | 2 5 11 9 9 Average Carried 5 | 1 2 8 7 6 Final Capacity 25 | 8 25 25 25 5 Final Carried 9 | 2 4 9 8 4 Class Distribution -------------------- 57% | Mutant 26% | Scavenger-Mutant 14% | Gunner Dominant Class ---------------- Mutant | -10/Materials Mutant | -10/Mines Mutant | -10/Subcaves Mutant | -8/Materials Resources | -11 -10 -10 -10 -8 ----------- Run | Yrd Mat Min Sub Mat Matter Collected 1240 | 243 187 61 75 674 Remotely . | . . . . . Salvage Created 2173 | 65 667 232 30 1179 Parts 97 | 2 28 16 2 49 Haulers Intercepted 3 | . 1 . . 2 Recyclers Shooed 6 | . 1 . . 5 Parts Field Recycled . | . . . . . Retrieved Matter . | . . . . . Parts Self-Destructed 3 | . . . 3 . Prevented . | . . . . . Parts Restored . | . . . . . Kills | -11 -10 -10 -10 -8 ------- Run | Yrd Mat Min Sub Mat Combat Hostiles Destroyed 51 | . 13 7 2 29 Guns 35 | . 12 6 2 15 Cannons 9 | . 1 1 . 7 AOE 7 | . . . . 7 Classes Destroyed 10 | 1 4 . . 5 Worker 3 | . 2 . . 1 Builder 3 | . . . . 3 Tunneler 1 | . . . . 1 Hauler 3 | . 1 . . 2 Recycler 3 | 1 1 . . 1 Operator 1 | . . . . 1 Swarmer 9 | . 2 3 2 2 Grunt 38 | . 11 4 . 23 Duelist 1 | . . . . 1 Sentry 3 | . . . . 3 Best Kill Streak 10 | 1 4 3 2 10 Combat Bots Only 7 | . 4 3 2 7 Max Kills in Single Turn 4 | 1 1 1 1 4 Gunslinging . | . . . . . Exploded 3 | . . . . 3 Melee . | . . . . . Uniques/NPCs Destroyed . | . . . . . Combat | -11 -10 -10 -10 -8 -------- Run | Yrd Mat Min Sub Mat Hostile Shots Fired 332 | . 79 38 7 208 Missed 84 | . 17 9 3 55 Hits 248 | . 62 29 4 153 Projectile 248 | . 62 29 4 153 Critical Strikes 11 | . 2 1 . 8 Actively Blocked 1 | . 1 . . . Damage Taken 3599 | . 717 357 84 2441 Core 764 | . 110 104 . 550 Absorbed by Shields . | . . . . . Redirected to Shielding 107 | . 76 . . 31 Regen/Repaired (Parts) 45 | . 45 . . . Core Remaining (%) 57 | 100 . . 14 . Volleys Fired 243 | 3 88 31 8 113 Largest 3 | 1 2 2 2 3 Hottest 145 | 20 120 80 88 145 Shots Fired 371 | 3 100 47 16 205 Gun 284 | 3 97 44 8 132 Cannon 75 | . . 3 8 64 Launcher 9 | . . . . 9 Special 3 | . 3 . . . Kinetic 253 | 3 88 31 12 119 Thermal 101 | . 12 16 . 73 Explosive 9 | . . . . 9 Electromagnetic 8 | . . . 4 4 Robot Hit Streak 11 | 3 10 6 11 11 Robot Miss Streak 7 | . 2 4 3 7 Penetration Max 1 | . . . . 1 Secondary Targets 2 | . . 1 . 1 Max Gunslinging Chain 1 | . . 1 . 1 Shots Hit Robots 254 | 3 71 29 11 140 Core Hits 198 | 2 36 15 3 142 Critical Kills 5 | . 1 . . 4 Critical Parts Destroyed 6 | . . . . 6 Critical Strikes 14 | . 1 . . 13 Burn 1 | . . . . 1 Destroy 11 | . 1 . . 10 Blast 1 | . . . . 1 Corrupt 1 | . . . . 1 Melee Attacks . | . . . . . Impact . | . . . . . Slashing . | . . . . . Piercing . | . . . . . Sneak Attacks . | . . . . . Combat Hostiles . | . . . . . Follow-up Attacks . | . . . . . Damage Inflicted 4657 | 24 599 283 174 3577 Guns 2550 | 24 575 246 64 1641 Cannons 1046 | . . 36 110 900 Explosions 1036 | . . . . 1036 Melee . | . . . . . Ramming 1 | . . 1 . . Kinetic 2249 | 24 506 149 140 1430 Thermal 1309 | . 93 133 . 1083 Explosive 1036 | . . . . 1036 Electromagnetic 62 | . . . 34 28 Impact . | . . . . . Slashing . | . . . . . Piercing . | . . . . . Highest Corruption 1 | . . . . 1 Average Corruption 1 | . . . . 1 Corruption Purged . | . . . . . Corruption Blocked . | . . . . . Effects 5 | . . . . 5 Message Errors 1 | . . . . 1 Matter Fused 2 | . . . . 2 Parts Rejected 1 | . . . . 1 Data Loss (minor) 1 | . . . . 1 Overload Shots . | . . . . . Overflow Damage 63 | . . . 16 47 Projectiles 41 | . . . 16 25 Explosions 22 | . . . . 22 Melee . | . . . . . Knockbacks 10 | . . . 1 9 Impact . | . . . . . Kinetic 10 | . . . 1 9 Secondary . | . . . . . Self-Inflicted Damage 110 | . . . . 110 Shots 3 | . . . . 3 Rammed 1 | . . 1 . . Targets Rammed 1 | . . 1 . . Kicked . | . . . . . Crushed . | . . . . . Highest Temperature 251 | . 69 60 . 251 Average Temperature 58 | . 17 18 . 76 Received Heat Transfer 1971 | . 375 183 . 1413 Siege Activations . | . . . . . Martial Activations . | . . . . . Shielding Activations . | . . . . . Robots Disrupted . | . . . . . Combat Hostiles . | . . . . . Robots Corrupted . | . . . . . Combat Hostiles . | . . . . . Parts Fried . | . . . . . Impact Corruptions . | . . . . . Robots Melted . | . . . . . Combat Hostiles . | . . . . . Parts Melted 1 | . . . . 1 Heat Transferred 2027 | . 200 299 . 1528 Parts Sabotaged . | . . . . . Parts Stolen . | . . . . . Parts Stripped . | . . . . . Power Chain Reactions . | . . . . . Alert | -11 -10 -10 -10 -8 ------- Run | Yrd Mat Min Sub Mat Maximum Alert Level 1 | . . . . 1 Low Security (%) 82 | 100 100 100 . 46 Level 1 17 | . . . . 53 Level 2 . | . . . . . Level 3 . | . . . . . Level 4 . | . . . . . Level 5 . | . . . . . High Security . | . . . . . Max Security . | . . . . . Peak Influence 395 | 5 80 60 . 395 Initial . | . . . . . Average 71 | . 13 10 . 188 Influence Increases 1549 | 5 364 185 50 945 Destroy 0b10 Robot/C 1020 | . 260 140 40 580 Destroy 0b10 Robot/NC 70 | 5 20 . . 45 Destroy Leader 216 | . 52 30 10 124 Successful Hack 40 | . 16 . . 24 Destroy Structure 83 | . 1 . . 82 Lose Combat Pursuer 120 | . 15 15 . 90 Influence Decreases 1254 | 5 364 185 50 650 Time Decay 854 | 5 304 175 50 320 Lost Part 250 | . 60 10 . 180 Purge Threat 150 | . . . . 150 Squads Dispatched 12 | . 3 . . 9 Investigation 5 | . 3 . . 2 Extermination . | . . . . . Reinforcement 6 | . . . . 6 Assault . | . . . . . Garrison 1 | . . . . 1 Intercept . | . . . . . Searches Triggered . | . . . . . Construction Impeded 1 | . . . . 1 Haulers Reinforced . | . . . . . Active Scanning Responses . | . . . . . Cargo Convoy Interrupts . | . . . . . Stealth | -11 -10 -10 -10 -8 --------- Run | Yrd Mat Min Sub Mat Distress Signals 5 | . 1 . . 4 Communications Jammed . | . . . . . Distress Signals . | . . . . . Times Spotted 98 | . 32 9 5 52 Peak Tracking Total 7 | . 5 2 3 7 Tactical Retreats 7 | . 1 1 . 5 Traps | -11 -10 -10 -10 -8 ------- Run | Yrd Mat Min Sub Mat Traps Triggered 2 | . 2 . . . Indirectly . | . . . . . Trap Hack Attempts . | . . . . . Triggered . | . . . . . Disarmed . | . . . . . Reprogrammed . | . . . . . Reused . | . . . . . Traps Extracted . | . . . . . Installed . | . . . . . Triggered . | . . . . . Machines | -11 -10 -10 -10 -8 ---------- Run | Yrd Mat Min Sub Mat Machines Disabled . | . . . . . Max in Single Turn . | . . . . . Machines Repaired . | . . . . . Machines Dismantled . | . . . . . Machines Sabotaged . | . . . . . Overloaded Fab Kills . | . . . . . Hacking | -11 -10 -10 -10 -8 --------- Run | Yrd Mat Min Sub Mat Machines Accessed 15 | . 8 . . 7 Terminals 11 | . 5 . . 6 Fabricators . | . . . . . Repair Stations 1 | . 1 . . . Recycling Units 2 | . 2 . . . Scanalyzers 1 | . . . . 1 Garrison Access . | . . . . . Total Hacks 45 | . 24 . . 21 Successful 23 | . 12 . . 11 Failed 22 | . 12 . . 10 Catastrophic 2 | . 1 . . 1 Database Lockouts . | . . . . . Manual 26 | . 13 . . 13 Terminals 34 | . 15 . . 19 Fabricators . | . . . . . Repair Stations 3 | . 3 . . . Recycling Units 6 | . 6 . . . Scanalyzers 2 | . . . . 2 Garrison Access . | . . . . . Terminal Hacks 10 | . 3 . . 7 Record 1 | . . . . 1 Part Schematic 2 | . 1 . . 1 Prototype ID Bank 2 | . 1 . . 1 Branch Access Points 1 | . 1 . . . Terminal Index 1 | . . . . 1 Alert Level 2 | . . . . 2 Unreport Threat 1 | . . . . 1 Fabricator Hacks . | . . . . . Repair Station Hacks 3 | . 3 . . . Scan Component 2 | . 2 . . . Repair 1 | . 1 . . . Recycling Unit Hacks 2 | . 2 . . . Report Inventory 1 | . 1 . . . Retrieve Components 1 | . 1 . . . Scanalyzer . | . . . . . Garrison Access Hacks . | . . . . . Unauthorized Hacks 8 | . 4 . . 4 Terminals 6 | . 2 . . 4 Botnet 6 | . 2 . . 4 Fabricators . | . . . . . Repair Stations . | . . . . . Recycling Units 2 | . 2 . . . Reject 1 | . 1 . . . Mask 1 | . 1 . . . Scanalyzers . | . . . . . Garrison Access . | . . . . . Data Cores Recovered 1 | . . . . 1 Used 1 | . . . . 1 Hacking Detections 10 | . 5 . . 5 Full Trace Events 5 | . 3 . . 2 Feedback Events 1 | . . . . 1 Corruption 1 | . . . . 1 Feedback Blocked . | . . . . . Robot Schematics Acquired . | . . . . . Robots Built . | . . . . . Authchips . | . . . . . Time . | . . . . . Total Robot Build Rating . | . . . . . Part Schematics Acquired 2 | . 1 . . 1 Parts Built . | . . . . . Authchips . | . . . . . Time . | . . . . . Total Part Build Rating . | . . . . . Part Studies Acquired . | . . . . . Parts Repaired 1 | . 1 . . . Time 26 | . 26 . . . Parts Recycled . | . . . . . Recycled Matter . | . . . . . Retrieved Matter . | . . . . . Retrieved Components 2 | . 2 . . . Parts Scanalyzed . | . . . . . Part Schematics Acquired . | . . . . . Parts Damaged . | . . . . . Bothacking | -11 -10 -10 -10 -8 ------------ Run | Yrd Mat Min Sub Mat Used RIF Installer . | . . . . . Robots Hacked . | . . . . . Non-combat . | . . . . . Combat . | . . . . . Robot Hacks Applied . | . . . . . Relay Couplers Released . | . . . . . Fabnet Peak Effective % . | . . . . . Robots Rewired . | . . . . . Allies Hacked . | . . . . . Hacks Repelled . | . . . . . Allies | -11 -10 -10 -10 -8 -------- Run | Yrd Mat Min Sub Mat Total Allies . | . . . . . Largest Group . | . . . . . Highest-Rated Group . | . . . . . Highest-Rated Ally . | . . . . . Total Orders . | . . . . . Ally Attacks . | . . . . . Total Damage . | . . . . . Kills . | . . . . . Allies Corrupted . | . . . . . Allies Melted . | . . . . . Intel | -11 -10 -10 -10 -8 ------- Run | Yrd Mat Min Sub Mat Active Infowar (turns) 576 | . . . . 576 Seismic 576 | . . . . 576 Robot Analysis Total . | . . . . . Derelict Logs Recovered . | . . . . . Drone Launches . | . . . . . Drone Recoveries . | . . . . . Exploration | -11 -10 -10 -10 -8 ------------- Run | Yrd Mat Min Sub Mat Turns Passed 4528 | 89 1833 954 192 1460 Spaces Moved 1539 | 51 643 363 34 448 Core 140 | 6 . . . 134 Treads 850 | 45 412 45 34 314 Legs . | . . . . . Wheels 549 | . 231 318 . . Hover . | . . . . . Flight . | . . . . . Fastest Speed 50 | 50 160 200 480 50 Average Speed 228 | 147 245 234 480 189 Slowest Speed 480 | 160 480 480 480 480 Overloaded Moves . | . . . . . Propulsion Burnouts . | . . . . . Robots Hopped . | . . . . . Potential Cave-ins . | . . . . . Cave-ins Triggered . | . . . . . Exploration Rate (%) 38 | 5 81 60 4 44 Regions Visited 4 Branch Regions 2 Pre-discovered Areas . | . . . . . Known Exits Taken 1 | . 1 . . . Unknown Exits Taken 3 | 1 . 1 1 . Scrap Searched . | . . . . . Spaces Dug . | . . . . . Terrain Destroyed 122 | . 1 . 4 117 Melee . | . . . . . Projectile 44 | . 1 . 4 39 AOE 77 | . . . . 77 Terrain Rammed . | . . . . . Walls Destroyed . | . . . . . Machines Disabled . | . . . . . Actions | -11 -10 -10 -10 -8 --------- Run | Yrd Mat Min Sub Mat Total 2219 | 61 806 424 51 877 Wait 357 | . 50 20 7 280 Move 1535 | 50 642 362 33 448 Hop . | . . . . . Pick Up 35 | 3 12 7 1 12 Fast Attach 17 | 4 3 . . 10 Attach 25 | . 9 1 2 13 Detach . | . . . . . Swap 2 | . 1 1 . . Drop 4 | 1 1 1 . 1 Fire 243 | 3 88 31 8 113 Melee . | . . . . . Ram . | . . . . . Kick . | . . . . . Crush 1 | . . 1 . . Escape Stasis . | . . . . . Rewire . | . . . . . Trap . | . . . . . Miscellaneous . | . . . . . Route ------- -11/Scrapyard -10/Materials (discovered 4 exits: [*Mat x2] / *Min / [*Sub]) -10/Mines -10/Subcaves -8/Materials (discovered 1 exit: [*Sto]) History --------- Turn | Location | Event 4 | -11/Scrapyard | Discovered new exit (range 15) 90 | -11/Scrapyard | Entered Materials 307 | -10/Materials | Build established: Mutant 416 | -10/Materials | Discovered new exit (range 8) 490 | -10/Materials | Repaired Propulsion Shielding 827 | -10/Materials | Lost 3 parts (1p1u1w) 830 | -10/Materials | Identified exit to Mines 924 | -10/Materials | Discovered new exit (range 6) 1452 | -10/Materials | Discovered new exit (range 13) 1489 | -10/Materials | Build established: Scavenger-Mutant 1587 | -10/Materials | Discovered new exit (range 10) 1923 | -10/Materials | Entered Mines 2193 | -10/Mines | A weapon hastily lodged in a ceiling crevice suddenly fell to the ground 2369 | -10/Mines | Core integrity fell below 50% 2645 | -10/Mines | Core integrity fell below 20% 2684 | -10/Mines | Build established: Mutant 2848 | -10/Mines | Discovered new exit (range 7) 2877 | -10/Mines | Entered Subcaves 2878 | -10/Subcaves | Approached by a straggling Scientist 2879 | -10/Subcaves | Ambushed by Subdwellers from Twisted Machinery 3040 | -10/Subcaves | Discovered new exit (range 6) 3069 | -10/Subcaves | Entered Materials 3069 | -8/Materials | Evolved 4 slots: Propulsion x1, Utility x2, Weapon x1 3727 | -8/Materials | Discovered new exit (range 10) 3745 | -8/Materials | Lost 6 parts (2n4w) 3748 | -8/Materials | Core integrity fell below 50% 3786 | -8/Materials | Destroyed 7 combat bots 3867 | -8/Materials | Lost 3 parts (2u1w) 4189 | -8/Materials | Build established: Gunner 4401 | -8/Materials | Core integrity fell below 20% 4469 | -8/Materials | Garrison activated, responded to threat 4529 | -8/Materials | Destroyed by G-47 Trooper with Particle Gun Last Messages --------------- Acquired Adv. Heat Sink. Critical hit (Burn: +37). U-05 Engineer builds a Wall. Y-45 Defender destroyed. R-06 Scavenger collects Lgt. Treads. Gauss Cannon destroyed. O-16 Technician uses terminal to summon reinforcements. ALERT: Hostiles spotted, dispatching reinforcements to Terminal M010. O-16 Technician locks terminal. O-16 Technician cleans trojans from system. U-05 Engineer builds a Door. G-47 Trooper knocked back. R-06 Scavenger collects Heat Sink. Slug penetrates G-47 Trooper. U-05 Engineer builds a Wall. Acquired 40 matter. U-05 Engineer builds a Wall. U-05 Engineer builds a Door. Map ----- +----------------------------------------------------+ | #?## ############???#### ####? | | #??# ###### ####### % T ## | | #??# + "# | | #??# ###### ####### "# | | ####??# #????## ##?????# "# | | ??????# #?????# #??????# """ T# | | ??????# #?????# #??????# "" ! "# | | ??????# #?????# #??????# """ "# | | ??????# +????"#+######?# "" "# | | ??????# #????# ?# "" ## | | ??????# #????# # " #? | | ??????? ???? # % # #? | | ??????? ???? " #"##+####? | | ??????? ?????# % # #? | | ??????? ????## % # #? | | ???????+????#" # % #? | | ?????????????# %%/ % T #? | | ?????????????# % #% % #? | | ?????????????# %# #? | | ?????????????# " #? | | ?????????????# ### ###? | | ?????????????# ????# #??? | | ???????????]]/ ??????#g #??? | | ??????????]]]# ???????## #??? | | ?????????????# ?????????#;g #??? | | ????????????????????????#@ #?? | | ????????????????????????#u % #?? | | ????????????????????????+ T #?? | | ??????????????????????? # #?? | | ??????????????????????### #?? | | ????????????????????????### ###?? | | ??????????????????????????# #???? | | ??????????????????????????? #???? | | ??????????????????????????? #???? | | ??????????????????????????? #???? | | ??????????????????????????? #???? | | ??????????????????????????? #???? | | ??????????????????????????? ????? | | ????????????????????????????????? | | ????????????????????????????????? | | ????????????????????????????????? | | ????????????????????????????????? | | ????????????????????????????????? | | ????????????????????????????????? | | ????????????????????????????????? | | ????????????????????????????????? | | ????????????????????????????????? | | ????????????????????????????????? | | ????????????????????????????????? | | ????????????????????????????????? | +----------------------------------------------------+ Best States ------------- Heat Dissipation 64 Energy Generation 14 Energy Capacity 250 Matter Stores 300 Matter Capacity 300 Sight Range 16 Terrain Scan Density 10 Propulsion Shielding 33 Utility Shielding 33 Evasion (%) 50 Recoil Reduction 6 Item Schematics ----------------- Huge Storage Unit | -10/Materials | Hacked Adv. Treads | -8/Materials | Hacked Robot Schematics ------------------ None Fabricated ------------ Nothing Repaired ---------- Propulsion Shielding | 10% | -10/Materials Studied --------- None Alien Tech Used ----------------- None Achievements -------------- None Challenges ------------ None Game ------ Seed IntegratedAnalysisTracker Manual? 0 Play Time 00:26:12 Cumulative 217.6 hours Start 2026.09.05 @ 18:08:21 End 2026.09.05 @ 18:40:57 Sessions 1 Manual Loads 0 Difficulty Rogue Special Mode None Game No. 261 Rogue 261 Adventurer 0 Explorer 0 Win Type - Total 2 Types 2/0/0/0/0/0/0/0/0/0 Lore% 28 Gallery% 54 Achievement% 34 Wizard Run 0 Options --------- Layout 1 ASCII 0 Keyboard 0 Movement Numpad Keybinds 0 Fullscreen 2 Font 24/Smallcaps Map View 50x35 Zoom Use 0% Tactical HUD 0 Map Filters NONE Filters NONE Steam 1 RUN: e175f358-7674-40bb-9bee-fa7e81fb8e91